bitfinex-derivatives/quotes_SOLF0:USTF0_20240824
["timestamp","ask_amount","ask_price","bid_price","bid_amount"]
[1724537331767,3.20421268,157.97,157.94,3.1642]
[1724537332361,3.20421268,157.97,157.93,3.1644]
[1724537333168,0.04051268,157.97,157.92,19.44]
[1724537333774,3.164,157.96,157.92,22.6045]
[1724537334268,3.20431268,157.97,157.93,3.1645]
[1724537334864,3.1639,157.96,157.93,3.1645]
[1724537336270,3.1641,157.95,157.91,3.1648]
[1724537337368,10.944,157.96,157.91,3.1648]
[1724537337972,10.944,157.96,157.92,3.1647]
[1724537338365,0.04051268,157.97,157.91,7.78]
[1724537338566,0.04051268,157.97,157.95,7.78]
[1724537338765,0.04051268,157.97,157.96,7.78]
[1724537339372,0.04051268,157.97,157.96,10.9439]
[1724537341374,0.04051268,157.97,157.96,7.78]
[1724537341579,0.04051268,157.97,157.95,3.164]
[1724537341774,0.04051268,157.97,157.95,10.944]
[1724537341970,0.04051268,157.97,157.95,7.78]
[1724537342483,0.04051268,157.97,157.94,19.44]
[1724537342982,0.04051268,157.97,157.95,3.1641]
[1724537343871,0.04051268,157.97,157.94,19.44]
[1724537344177,0.04051268,157.97,157.92,19.44]
[1724537344373,3.164,157.96,157.92,19.44]
[1724537344576,3.164,157.96,157.92,22.6046]
[1724537345076,3.164,157.96,157.93,3.1645]
[1724537346179,0.04051268,157.97,157.92,19.44]
[1724537347377,3.1639,157.96,157.93,3.1644]
[1724537347576,0.04051268,157.97,157.93,3.1644]
[1724537347778,0.04051268,157.97,157.92,19.44]
[1724537347974,0.04051268,157.97,157.94,3.1641]
[1724537348276,8.9654999,158.23,157.96,19.44]
[1724537348277,229.0,158.09,157.96,19.44]
[1724537348480,229.0,158.09,158.01,22.6029]
[1724537348671,19.44,158.12,158.01,22.55089865]
[1724537348672,3.15804786,158.1,158.01,22.55089865]
[1724537348871,3.1616,158.08,158.03,19.44]
[1724537349583,3.1616,158.08,158.04,3.15994649]
[1724537349775,0.04023216,158.07,158.04,3.20128455]
[1724537349976,3.20203216,158.07,158.04,3.20128455]
[1724537350180,0.04023216,158.07,158.04,0.04133806]
[1724537350581,3.1621,158.05,158.04,0.04133806]
[1724537351681,19.44,158.05,157.97,5.5]
[1724537351885,19.44,158.03,157.95,24.94]
[1724537352372,3.1632,158.0,157.95,28.1039]
[1724537352782,3.1632,158.0,157.96,3.1639]
[1724537352985,3.1629,158.01,157.95,24.94]
[1724537353174,0.04833422,157.99,157.97,19.44]
[1724537353386,0.04833422,157.99,157.97,22.61585565]
[1724537353586,0.04833422,157.99,157.97,19.44]
[1724537353883,0.04833422,157.99,157.97,22.6037]
[1724537354084,0.04833422,157.99,157.97,19.44]
[1724537354984,3.1627,158.02,157.97,22.62991146]
[1724537355184,3.1008,158.06,157.97,22.62991146]
[1724537355379,3.1008,158.06,157.97,25.79351146]
[1724537355781,22.5408,158.06,157.97,25.79351146]
[1724537355986,0.04847327,158.03,157.97,25.79351146]
[1724537357480,3.1629,158.01,157.97,25.79351146]
[1724537358179,0.04847327,158.03,157.97,3.18991146]
[1724537358481,0.04847327,158.03,157.97,3.14593653]
[1724537358680,3.1633,157.99,157.97,0.04057096]
[1724537358985,22.5408,158.06,157.97,0.04057096]
[1724537358986,0.04389931,158.0,157.97,0.04057096]
[1724537359386,3.1635,157.98,157.97,0.04057096]
[1724537366284,19.44,157.99,157.79,6.3344]
[1724537366285,19.44,157.99,157.9,3.1651]
[1724537366485,19.44,158.0,157.9,3.1651]
[1724537366486,19.44,157.96,157.9,3.1651]
[1724537366688,3.1646,157.93,157.9,3.1651]
[1724537366988,3.1646,157.93,157.89,6.33773229]
[1724537367181,3.20449742,157.93,157.89,6.33773229]
[1724537368991,3.1647,157.92,157.89,6.33773229]
[1724537370393,19.47989742,157.93,157.84,25.28]
[1724537370605,0.03989597,157.9,157.85,2.8939662]
[1724537370893,3.20509597,157.9,157.86,7.3260598]
[1724537371094,3.20509597,157.9,157.86,3.1657]
[1724537371291,0.03989597,157.9,157.85,5.5]
[1724537371489,0.03989597,157.9,157.84,3.15231792]
[1724537371697,0.03989597,157.9,157.85,4.16051117]
[1724537371894,0.03989597,157.9,157.85,3.15959737]
[1724537372087,3.1657,157.88,157.85,3.15959737]
[1724537372397,0.03989597,157.9,157.83,26.4663]
[1724537372692,3.1655,157.88,157.83,29.6327]
[1724537373092,3.1655,157.88,157.84,3.20580604]
[1724537373295,0.03989597,157.9,157.84,3.20580604]
[1724537374499,3.1658,157.87,157.83,8.6664]
[1724537374695,3.21112744,157.87,157.83,8.6664]
[1724537375103,3.21112744,157.87,157.84,3.19784275]
[1724537376604,0.04532744,157.87,157.84,3.1663]
[1724537376803,0.04532744,157.87,157.84,6.38745995]
[1724537377003,0.04532744,157.87,157.84,3.1663]
[1724537377402,0.04532744,157.87,157.85,3.1661]
[1724537377608,0.04532744,157.87,157.84,3.17968035]
[1724537377911,0.04532744,157.87,157.84,3.1662]
[1724537378114,0.04532744,157.87,157.83,24.94]
[1724537378302,3.21112744,157.87,157.83,24.94]
[1724537378502,3.21112744,157.87,157.84,3.22337641]
[1724537378913,0.04532744,157.87,157.84,3.22337641]
[1724537380713,0.04532744,157.87,157.84,6.38967641]
[1724537380911,0.04532744,157.87,157.8,1.5522]
[1724537381215,3.1662,157.85,157.81,3.1669]
[1724537381511,0.04532744,157.87,157.79,19.44]
[1724537381717,0.04532744,157.87,157.8,3.1669]
[1724537381718,3.1664,157.84,157.8,3.1669]
[1724537382012,3.1664,157.84,157.79,19.44]
[1724537382915,3.20726058,157.85,157.81,3.1667]
[1724537383516,3.1663,157.84,157.81,3.1667]
[1724537383715,0.04116058,157.85,157.77,19.44]
[1724537383915,0.04116058,157.85,157.78,5.5]
[1724537384120,3.1668,157.82,157.78,8.6673]
[1724537384323,3.21163261,157.82,157.78,8.6673]
[1724537384715,0.04483261,157.82,157.79,3.1673]
[1724537384917,0.04483261,157.82,157.79,22.6073]
[1724537385414,3.21173261,157.82,157.78,8.6675]
[1724537386323,3.21173261,157.82,157.78,3.1675]
[1724537386618,0.04483261,157.82,157.79,3.1672]
[1724537387222,0.04483261,157.82,157.8,3.167]
[1724537387521,0.04483261,157.82,157.79,19.44]
[1724537387916,0.04483261,157.82,157.79,22.6073]
[1724537388120,0.04483261,157.82,157.79,19.44]
[1724537388517,0.04483261,157.82,157.8,3.1671]
[1724537390323,0.04483261,157.82,157.79,22.6072]
[1724537391524,0.04483261,157.82,157.8,3.1671]
[1724537391922,0.04483261,157.82,157.81,19.44]
[1724537392427,0.04483261,157.82,157.81,22.6069]
[1724537393828,0.04483261,157.82,157.81,19.44]
[1724537394023,0.04483261,157.82,157.79,19.44]
[1724537394623,0.04483261,157.82,157.8,3.1669]
[1724537395923,0.04483261,157.82,157.81,3.1669]
[1724537397328,234.48,157.93,157.83,3.1664]
[1724537397528,19.44,157.93,157.83,3.1664]
[1724537397924,19.44,157.93,157.84,19.44]
[1724537398127,3.028,157.94,157.86,19.44]
[1724537398330,0.04088056,157.92,157.88,0.04714217]
[1724537399627,3.1653,157.89,157.88,0.04714217]
[1724537401734,3.1651,157.9,157.88,0.04714217]
[1724537402333,0.04088056,157.92,157.89,19.44]
[1724537402835,0.04088056,157.92,157.9,3.1649]
[1724537403130,0.04088056,157.92,157.89,22.6052]
[1724537403938,0.04088056,157.92,157.88,3.21254217]
[1724537404136,0.04088056,157.92,157.88,0.04714217]
[1724537405430,3.20568056,157.92,157.88,3.21244217]
[1724537405933,3.20568056,157.92,157.88,0.04714217]
[1724537407338,3.20568056,157.92,157.89,3.1653]
[1724537407538,0.04088056,157.92,157.89,19.44]
[1724537408236,0.04088056,157.92,157.9,3.165]
[1724537409441,0.04088056,157.92,157.89,22.6052]
[1724537413745,0.04088056,157.92,157.88,0.04714217]
[1724537413746,0.04088056,157.92,157.91,19.44]
[1724537415045,0.04088056,157.92,157.91,22.6049]
[1724537415935,1.6121,157.99,157.91,19.44]
[1724537416333,1.6121,157.99,157.91,22.6049]
[1724537416846,0.04228266,157.97,157.93,0.04109819]
[1724537417347,3.1643,157.94,157.93,0.04109819]
[1724537417548,0.04228266,157.97,157.93,0.04109819]
[1724537418144,3.1641,157.95,157.93,0.04109819]
[1724537418448,0.04228266,157.97,157.93,0.04109819]
[1724537419043,3.1643,157.94,157.93,0.04109819]
[1724537421737,3.1641,157.95,157.93,0.04109819]
[1724537421943,0.04228266,157.97,157.93,0.04109819]
[1724537422148,0.04228266,157.97,157.93,7.82109819]
[1724537422344,3.164,157.96,157.93,7.82109819]
[1724537422539,0.04228266,157.97,157.93,7.82109819]
[1724537423139,3.1641,157.95,157.93,7.82109819]
[1724537426851,0.04228266,157.97,157.94,10.9441]
[1724537427439,3.20598266,157.97,157.94,10.9441]
[1724537429450,0.04228266,157.97,157.96,7.78]
[1724537429642,3.0634,158.03,157.96,7.78]
[1724537429643,1.4957,158.03,157.96,7.78]
[1724537429839,1.4957,158.03,158.0,7.78]
[1724537430244,3.1452,158.07,158.0,7.78]
[1724537430446,3.1452,158.07,158.02,7.78]
[1724537430646,0.04112349,158.06,158.03,0.04142843]
[1724537430846,0.04112349,158.06,158.03,7.82142843]
[1724537431246,3.1621,158.05,158.03,7.82142843]
[1724537431659,0.04112349,158.06,158.03,7.82142843]
[1724537431852,0.04112349,158.06,158.03,0.04142843]
[1724537432354,3.1621,158.05,158.04,7.78]
[1724537432655,3.1621,158.05,158.03,0.04142843]
[1724537432861,3.1623,158.04,158.03,0.04142843]
[1724537434757,3.1621,158.05,158.03,0.04142843]
[1724537435154,0.04112349,158.06,158.03,0.04142843]
[1724537435456,3.1623,158.04,158.03,0.04142843]
[1724537435856,19.42,158.05,157.96,5.46]
[1724537436061,19.42,158.01,157.93,6.9924]
[1724537436359,19.42,158.03,157.95,3.1641]
[1724537436554,3.005,158.04,157.96,19.42]
[1724537436953,3.1631,158.0,157.98,0.04293318]
[1724537438865,3.1633,157.99,157.98,0.04293318]
[1724537440051,3.1631,158.0,157.98,0.04293318]
[1724537440450,0.04510397,158.02,157.98,0.04293318]
[1724537440659,0.04510397,158.02,158.0,19.42]
[1724537440858,69.78504518,158.24,158.0,41.94303114]
[1724537440859,2.9617,158.12,158.0,41.94303114]
[1724537441156,19.42,158.11,158.01,19.42]
[1724537441353,19.42,158.07,157.99,5.46]
[1724537441758,1.4506,158.06,157.99,5.46]
[1724537441954,0.04275817,158.05,158.01,0.04213476]
[1724537442157,1.49505817,158.05,158.01,0.04213476]
[1724537442357,3.1626,158.03,158.01,0.04213476]
[1724537442559,1.49505817,158.05,158.01,0.04213476]
[1724537443260,3.1627,158.02,158.01,0.04213476]
[1724537446464,1.49505817,158.05,158.01,0.04213476]
[1724537446765,0.04275817,158.05,158.01,0.04213476]
[1724537447464,3.1626,158.03,158.01,0.04213476]
[1724537447764,0.04275817,158.05,158.01,0.04213476]
[1724537448160,3.1627,158.02,158.01,0.04213476]
[1724537448857,0.04275817,158.05,158.01,0.04213476]
[1724537449561,3.1623,158.04,158.01,0.04213476]
[1724537449864,0.04275817,158.05,158.01,0.04213476]
[1724537450762,3.20505817,158.05,158.01,3.20493476]
[1724537451065,0.04275817,158.05,158.01,0.04213476]
[1724537451265,3.1623,158.04,158.01,0.04213476]
[1724537451762,19.46275817,158.05,158.01,0.04213476]
[1724537451966,3.1627,158.02,158.01,0.04213476]
[1724537453462,3.1633,158.0,157.95,3.1639]
[1724537453966,19.42,158.03,157.95,3.1639]
[1724537454163,19.42,158.03,157.94,28.0243]
[1724537454567,3.23287642,158.05,157.97,0.04107547]
[1724537454568,0.04160089,158.0,157.97,0.04107547]
[1724537455371,3.20480089,158.0,157.97,0.04107547]
[1724537456869,0.04160089,158.0,157.97,0.04107547]
[1724537458071,0.04160089,158.0,157.98,22.5834]
[1724537459464,0.04160089,158.0,157.99,3.1633]
[1724537462084,1.4897,158.1,157.98,19.42]
[1724537462284,1.4897,158.1,158.03,19.42]
[1724537463075,0.04288485,158.08,158.05,0.04058938]
[1724537464480,3.1619,158.06,158.05,0.04058938]
[1724537467579,3.1632,158.0,157.97,19.42]
[1724537467781,19.42,158.07,157.97,24.86]
[1724537467978,19.42,158.05,157.96,5.44]
[1724537468180,22.62756797,158.05,157.96,5.44]
[1724537468484,1.5387,158.04,157.96,5.44]
[1724537468684,0.04035765,158.02,157.98,0.04255327]
[1724537468884,3.1633,157.99,157.98,0.04255327]
[1724537470283,3.1631,158.0,157.98,0.04255327]
[1724537470482,0.04035765,158.02,157.98,0.04255327]
[1724537471687,3.1633,157.99,157.98,0.04255327]
[1724537476586,0.04035765,158.02,157.98,0.04255327]
[1724537478386,3.1633,157.99,157.98,0.04255327]
[1724537478791,0.04035765,158.02,157.98,0.04255327]
[1724537478991,0.04035765,158.02,158.01,19.42]
[1724537479685,0.04035765,158.02,158.0,3.10398027]
[1724537479881,0.04035765,158.02,157.99,3.1633]
[1724537479882,3.20305765,158.02,157.99,19.42]
[1724537482887,0.04035765,158.02,157.99,19.42]
[1724537483284,0.04035765,158.02,157.98,0.04255327]
[1724537484390,3.1629,158.01,157.98,0.04255327]
[1724537485491,3.1629,158.01,157.98,3.20605327]
[1724537486097,0.04035765,158.02,157.98,0.04255327]
[1724537488000,3.1633,157.99,157.98,0.04255327]
[1724537491502,3.1632,158.0,157.98,19.46255327]
[1724537493002,3.163,158.01,157.98,19.46255327]
[1724537493401,0.04035765,158.02,158.0,19.42]
[1724537494302,0.04035765,158.02,158.0,22.58978602]
[1724537494703,0.04035765,158.02,158.0,19.42]
[1724537495308,0.04035765,158.02,158.0,22.54296682]
[1724537498506,0.04035765,158.02,158.01,7.77]
[1724537500506,0.04035765,158.02,158.0,7.77]
[1724537500808,0.04035765,158.02,157.98,7.81255327]
[1724537501213,3.163,158.01,157.98,7.81255327]
[1724537502112,3.1633,158.0,157.98,7.81255327]
[1724537502799,3.163,158.01,157.98,7.81255327]
[1724537503205,3.163,158.01,158.0,7.77]
[1724537504603,3.163,158.01,157.98,0.04255327]
[1724537504908,0.04035765,158.02,157.98,7.81255327]
[1724537505112,0.04035765,158.02,157.98,0.04255327]
[1724537505607,1.58135765,158.02,157.98,0.04255327]
[1724537506407,3.1633,157.99,157.98,0.04255327]
[1724537508823,7.77,158.0,157.89,4.5814]
[1724537508824,7.77,157.98,157.91,13.17]
[1724537509117,7.77,157.97,157.9,7.77]
[1724537509308,3.1645,157.94,157.91,7.77]
[1724537509705,3.21140641,157.94,157.91,7.81173964]
[1724537511404,3.1645,157.93,157.91,7.81173964]
[1724537512109,3.21120641,157.94,157.91,7.81173964]
[1724537513518,0.04690641,157.94,157.93,7.77]
[1724537516713,0.04690641,157.94,157.93,10.9345]
[1724537517812,3.1635,157.98,157.94,3.1642]
[1724537518017,3.1633,157.99,157.97,7.77]
[1724537518618,3.1635,157.98,157.97,7.77]
[1724537518816,3.1635,157.98,157.92,34.19698926]
[1724537518817,3.1635,157.98,157.96,7.81291596]
[1724537519710,0.04650257,157.99,157.96,7.81291596]
[1724537521423,3.1636,157.98,157.96,7.81291596]
[1724537522119,3.1636,157.98,157.97,7.77]
[1724537522923,3.20980257,157.99,157.97,7.77]
[1724537523124,0.04650257,157.99,157.97,7.77]
[1724537523816,0.04650257,157.99,157.96,7.81291596]
[1724537524614,129.02387762,158.22,157.98,7.77]
[1724537524821,3.242015,158.08,158.01,7.77]
[1724537525029,7.77,158.09,158.01,7.77]
[1724537525319,4.5416,158.11,158.01,7.77]
[1724537525524,7.77,158.1,158.03,7.77]
[1724537525723,0.04817241,158.08,158.05,0.04169407]
[1724537526625,3.1619,158.06,158.05,0.04169407]
[1724537533220,19.43,158.07,157.98,24.83]
[1724537533422,1.5137,158.05,157.98,24.83]
[1724537533817,3.163,158.01,157.98,24.83]
[1724537534226,3.21089732,158.01,157.98,24.87045476]
[1724537535234,0.04789732,158.01,157.98,28.03385476]
[1724537536430,0.04789732,158.01,157.98,24.87045476]
[1724537537026,0.04789732,158.01,157.98,28.03385476]
[1724537538334,0.04789732,158.01,157.99,3.1633]
[1724537539628,3.0061,158.11,158.0,19.43]
[1724537539929,3.0061,158.11,158.02,19.43]
[1724537539930,1.4996,158.1,158.02,19.43]
[1724537540729,0.04100638,158.08,158.04,0.04157959]
[1724537541231,3.1621,158.05,158.04,0.04157959]
[1724537544228,0.04100638,158.08,158.04,0.04157959]
[1724537544625,3.1621,158.05,158.04,0.04157959]
[1724537545932,0.04100638,158.08,158.04,0.04157959]
[1724537546927,0.04100638,158.08,158.04,19.47157959]
[1724537547528,3.20250638,158.08,158.05,5.38]
[1724537548431,0.04100638,158.08,158.05,5.38]
[1724537549735,3.1618,158.07,158.05,5.38]
[1724537550034,0.04100638,158.08,158.05,5.38]
[1724537550237,0.04100638,158.08,158.04,0.04157959]
[1724537550434,3.1618,158.07,158.04,0.04157959]
[1724537550639,0.04100638,158.08,158.04,0.04157959]
[1724537551031,3.162,158.06,158.04,0.04157959]
[1724537551230,0.04100638,158.08,158.04,0.04157959]
[1724537551838,3.1621,158.05,158.04,0.04157959]
[1724537553831,0.04100638,158.08,158.04,19.47157959]
[1724537554038,0.04100638,158.08,158.05,3.15138946]
[1724537555038,0.04100638,158.08,158.04,19.47157959]
[1724537555438,0.04100638,158.08,158.05,3.162]
[1724537555839,0.04100638,158.08,158.05,6.38477558]
[1724537557331,0.04100638,158.08,158.05,3.22277558]
[1724537558336,0.04100638,158.08,158.04,22.63377959]
[1724537558940,0.04100638,158.08,158.04,19.47157959]
[1724537561339,0.04100638,158.08,158.04,0.04157959]
[1724537561742,3.1618,158.07,158.04,0.04157959]
[1724537561941,0.04100638,158.08,158.04,0.04157959]
[1724537562950,3.20250638,158.08,158.04,0.04157959]
[1724537563238,0.04100638,158.08,158.04,0.04157959]
[1724537564231,3.1621,158.05,158.04,0.04157959]
[1724537564636,3.163,158.01,157.98,3.1274731]
[1724537564843,3.163,158.01,157.98,5.38]
[1724537565437,3.163,158.01,157.97,10.9337]
[1724537565743,3.21092354,158.01,157.97,10.97879233]
[1724537566547,3.1631,158.0,157.97,0.04509233]
[1724537567246,3.21082354,158.01,157.97,0.04509233]
[1724537568144,0.04792354,158.01,157.97,0.04509233]
[1724537568841,3.1635,157.98,157.97,0.04509233]
[1724537569038,19.44,158.0,157.89,28.0170833]
[1724537569244,19.44,158.0,157.9,7.32275972]
[1724537569447,19.44,158.0,157.9,3.1649]
[1724537569940,0.04467476,157.97,157.93,0.04698339]
[1724537570948,3.1639,157.96,157.93,0.04698339]
[1724537571248,0.04467476,157.97,157.93,0.04698339]
[1724537571551,3.1641,157.95,157.93,0.04698339]
[1724537573349,0.04467476,157.97,157.93,0.04698339]
[1724537573747,3.1642,157.95,157.93,0.04698339]
[1724537574250,0.04467476,157.97,157.93,0.04698339]
[1724537574444,3.1643,157.94,157.93,0.04698339]
[1724537577347,3.1648,157.92,157.87,19.44]
[1724537578156,3.1649,157.91,157.87,22.6056]
[1724537578356,3.21156297,157.91,157.87,22.63381349]
[1724537578944,0.04666297,157.91,157.87,0.02821349]
[1724537579955,3.1654,157.89,157.87,0.02821349]
[1724537581860,3.1655,157.88,157.87,0.02821349]
[1724537587259,3.1661,157.86,157.81,22.6069]
[1724537587665,19.44,157.89,157.79,19.44]
[1724537587853,2.957,157.88,157.79,19.44]
[1724537588259,0.0460293,157.85,157.79,19.44]
[1724537588457,3.1663,157.84,157.79,19.44]
[1724537589361,3.1663,157.84,157.8,3.167]
[1724537589561,3.1663,157.84,157.79,19.44]
[1724537589762,0.0460293,157.85,157.79,19.44]
[1724537590064,0.0460293,157.85,157.81,19.44]
[1724537590267,0.0460293,157.85,157.82,19.44]
[1724537590863,0.0460293,157.85,157.81,3.1669]
[1724537591062,0.0460293,157.85,157.83,19.44]
[1724537596069,0.0460293,157.85,157.84,22.6063]
[1724537596574,0.0460293,157.85,157.82,3.1666]
[1724537596868,0.0460293,157.85,157.79,5.36]
[1724537596869,0.0460293,157.85,157.8,19.44]
[1724537597369,3.1665,157.83,157.8,19.44]
[1724537598171,3.1667,157.82,157.79,5.36]
[1724537598368,0.0460293,157.85,157.68,44.76]
[1724537598674,3.1671,157.8,157.76,19.44]
[1724537598869,3.1671,157.8,157.75,5.34]
[1724537599064,3.1671,157.8,157.76,19.44]
[1724537602769,3.1673,157.79,157.76,19.44]
[1724537604175,0.04295711,157.81,157.76,19.44]
[1724537604466,0.04279353,157.76,157.72,5.34]
[1724537604671,3.21942143,157.83,157.75,19.44]
[1724537604864,1.4514,157.85,157.75,19.44]
[1724537605068,4.64737981,157.85,157.75,19.44]
[1724537605273,1.4514,157.85,157.75,22.6081]
[1724537605465,1.4514,157.85,157.75,19.44]
[1724537605967,0.04148261,157.82,157.78,0.04153138]
[1724537606579,3.1669,157.81,157.78,0.04153138]
[1724537606875,0.04148261,157.82,157.79,19.44]
[1724537608578,0.04148261,157.82,157.81,7.78]
[1724537609278,3.20828261,157.82,157.81,7.78]
[1724537609874,0.04148261,157.82,157.81,7.78]
[1724537610581,0.04148261,157.82,157.8,19.46]
[1724537614977,1.4259,157.86,157.8,19.46]
[1724537615284,1.457,157.89,157.85,19.46]
[1724537615580,1.4485,157.93,157.88,19.46]
[1724537615783,3.165,157.91,157.88,19.46]
[1724537615980,3.2060251,157.91,157.88,19.50220663]
[1724537616176,0.0410251,157.91,157.88,0.04220663]
[1724537616378,3.1652,157.9,157.88,0.04220663]
[1724537619680,0.0410251,157.91,157.88,19.50220663]
[1724537620374,0.0410251,157.91,157.88,22.66760663]
[1724537620584,0.0410251,157.91,157.88,3.20760663]
[1724537620880,3.1651,157.9,157.88,0.04220663]
[1724537621090,0.0410251,157.91,157.88,0.04220663]
[1724537622276,3.1653,157.89,157.88,0.04220663]
[1724537624579,19.46,157.9,157.8,8.5069]
[1724537624888,1.4213,157.88,157.8,27.9669]
[1724537625082,4.62660402,157.88,157.8,27.9669]
[1724537625483,3.1662,157.85,157.82,0.04080736]
[1724537626085,0.0435527,157.86,157.82,19.50080736]
[1724537627483,0.0435527,157.86,157.82,22.66730736]
[1724537627884,0.0435527,157.86,157.83,3.1664]
[1724537628091,0.0435527,157.86,157.84,19.46]
[1724537628291,0.0435527,157.86,157.84,22.63300079]
[1724537628680,0.0435527,157.86,157.85,3.1661]
[1724537628886,1.4485,157.93,157.89,19.46]
[1724537629092,1.539,157.97,157.91,19.46]
[1724537629293,1.539,157.97,157.93,19.46]
[1724537629891,0.0407855,157.97,157.93,19.50688336]
[1724537630085,0.0407855,157.97,157.95,19.46]
[1724537633290,0.0407855,157.97,157.95,22.6239]
[1724537633488,3.0521,158.02,157.95,24.78]
[1724537633688,1.4873,158.07,157.98,19.46]
[1724537633893,3.1626,158.03,157.98,19.46]
[1724537634492,0.04519081,158.02,157.99,0.04381799]
[1724537635487,3.20799081,158.02,157.99,0.04381799]
[1724537636288,3.1629,158.01,157.99,0.04381799]
[1724537638293,3.20789081,158.02,157.99,0.04381799]
[1724537642700,3.1629,158.01,157.99,0.04381799]
[1724537643001,3.1629,158.01,157.99,3.19315726]
[1724537643500,3.1629,158.01,157.99,0.04381799]
[1724537646498,3.1631,158.0,157.99,0.04381799]
[1724537653105,3.1629,158.01,157.99,0.04381799]
[1724537653304,3.1629,158.01,158.0,7.78]
[1724537654404,3.1631,158.0,157.99,0.04381799]
[1724537654707,3.1631,158.0,157.99,7.82381799]
[1724537659002,0.04519081,158.02,157.99,7.82381799]
[1724537660411,3.1631,158.0,157.99,7.82381799]
[1724537663114,3.1629,158.01,157.99,7.82381799]
[1724537663314,0.04519081,158.02,158.0,7.78]
[1724537665013,0.04519081,158.02,157.99,0.04381799]
[1724537665411,0.04519081,158.02,157.95,7.78]
[1724537665609,7.78,158.03,157.95,7.78]
[1724537665804,7.78,158.01,157.95,7.78]
[1724537666006,3.0354,158.0,157.84,31.12]
[1724537666216,7.78,157.99,157.85,5.9755]
[1724537666412,0.04174462,157.94,157.91,22.6148]
[1724537666616,0.04174462,157.94,157.92,3.14396296]
[1724537667210,0.04174462,157.94,157.93,19.45]
[1724537669220,0.04174462,157.94,157.91,24.7934862]
[1724537669511,0.04174462,157.94,157.91,19.4934862]
[1724537669906,3.1645,157.93,157.91,19.4934862]
[1724537670519,3.1647,157.92,157.91,0.0434862]
[1724537676622,0.04174462,157.94,157.91,19.4934862]
[1724537677713,0.04174462,157.94,157.93,19.45]
[1724537677924,1.4505,157.99,157.93,19.45]
[1724537677925,3.1636,157.98,157.93,25.83232405]
[1724537678222,3.1636,157.98,157.95,19.45]
[1724537678929,0.04490222,157.98,157.95,19.49050332]
[1724537680021,3.20840222,157.98,157.95,19.49050332]
[1724537680519,0.04490222,157.98,157.95,0.04050332]
[1724537681818,3.1639,157.97,157.95,0.04050332]
[1724537683222,3.1639,157.96,157.95,0.04050332]
[1724537685022,3.1643,157.94,157.91,19.45]
[1724537685914,3.20832941,157.94,157.91,19.49130703]
[1724537688027,0.04402941,157.94,157.91,19.49130703]
[1724537688523,0.04402941,157.94,157.92,7.78]
[1724537689325,3.20832941,157.94,157.92,7.78]
[1724537694636,0.04402941,157.94,157.92,7.78]
[1724537697429,3.20832941,157.94,157.92,7.78]
[1724537698436,3.1645,157.93,157.92,7.78]
[1724537698737,0.04402941,157.94,157.92,7.78]
[1724537699148,3.20842941,157.94,157.92,7.78]
[1724537699430,0.04402941,157.94,157.92,7.78]
[1724537700335,7.82402941,157.94,157.91,0.04130703]
[1724537700639,2.9731,157.93,157.91,0.04130703]
[1724537701038,3.1647,157.92,157.91,0.04130703]
[1724537703033,2.9731,157.93,157.91,7.82130703]
[1724537703234,0.04402941,157.94,157.92,7.78]
[1724537705336,2.9591,157.99,157.92,42.00183726]
[1724537705529,13.06,158.05,157.96,7.78]
[1724537705734,4.4552,158.05,157.98,7.78]
[1724537705933,4.4552,158.05,157.92,39.50183726]
[1724537705934,7.62443895,158.05,158.0,7.78]
[1724537706337,7.62443895,158.05,158.01,0.04194402]
[1724537706338,0.04678024,158.04,158.01,0.04194402]
[1724537706537,3.1627,158.02,158.01,0.04194402]
[1724537706738,0.04678024,158.04,158.01,19.47194402]
[1724537707241,0.04678024,158.04,158.01,0.04194402]
[1724537709343,3.1627,158.02,158.01,0.04194402]
[1724537710245,3.1634,157.99,157.97,19.43]
[1724537710437,19.43,158.04,157.95,19.43]
[1724537710741,3.1636,157.98,157.95,19.43]
[1724537711136,0.0450671,157.98,157.95,19.47607558]
[1724537712043,0.0450671,157.98,157.96,19.43]